bitfinex/quotes_ETHUSD_20240721
["timestamp","ask_amount","ask_price","bid_price","bid_amount"]
[1721521982914,3.0,3527.0,3526.4,2.83574]
[1721521983119,3.0,3527.0,3526.2,2.83591]
[1721521983421,3.5949171,3527.2,3526.5,2.83566]
[1721521983640,0.73231656,3527.1,3526.5,2.83566]
[1721521989053,0.73231656,3527.1,3526.4,2.2689]
[1721521989571,2.83537,3526.9,3526.4,2.2689]
[1721521989862,3.0,3526.8,3526.4,2.2689]
[1721521990069,3.0,3527.0,3526.4,2.2689]
[1721521990559,3.99975637,3527.0,3526.4,2.2689]
[1721521990937,6.83503637,3527.0,3526.4,2.2689]
[1721521991177,3.83503637,3527.0,3526.4,2.2689]
[1721521991320,3.0,3526.9,3526.4,2.2689]
[1721521993854,5.83536,3526.9,3526.4,2.2689]
[1721521994059,5.83536,3526.9,3526.2,2.83589]
[1721521996780,2.83543,3526.8,3526.2,2.83589]
[1721522001687,3.0,3526.9,3526.1,9.8291]
[1721522001688,3.0,3526.9,3526.1,12.66507]
[1721522001851,3.583527,3526.9,3526.1,12.66507]
[1721522002284,2.83549,3526.8,3526.1,12.66507]
[1721522002682,5.83535,3526.9,3526.2,2.8359]
[1721522002891,2.83535,3526.9,3526.2,2.8359]
[1721522003196,3.0,3526.8,3526.2,2.8359]
[1721522003897,3.0,3526.8,3526.2,3.6709]
[1721522007106,3.0,3526.8,3526.2,2.8359]
[1721522014581,3.0,3526.8,3526.3,2.2871]
[1721522016300,3.5949171,3526.8,3526.3,2.2871]
[1721522017383,0.5949171,3526.7,3526.3,2.2871]
[1721522018324,0.5949171,3526.6,3526.3,2.2871]
[1721522018677,0.89321853,3526.5,3526.0,2.2871]
[1721522018880,2.83591,3526.2,3526.0,2.2871]
[1721522019082,3.43034478,3526.2,3526.0,2.2871]
[1721522019303,0.59443478,3526.1,3526.0,2.2871]
[1721522020284,0.89321853,3526.1,3526.0,2.2871]
[1721522021089,4.02628997,3526.2,3526.0,2.2871]
[1721522023023,4.02628997,3526.2,3525.7,2.4562]
[1721522023225,0.59529411,3525.8,3525.7,2.4562]
[1721522023629,4.02661997,3525.8,3525.5,2.4562]
[1721522023792,1.190461,3525.7,3525.5,2.4562]
[1721522023987,1.190461,3525.6,3525.5,2.4562]
[1721522024421,1.19049057,3525.6,3525.5,2.4562]
[1721522024811,2.83656,3525.4,3525.2,2.4562]
[1721522025036,0.8923916,3525.3,3525.2,2.4562]
[1721522026290,2.83659,3525.4,3525.2,2.4562]
[1721522026291,0.8923916,3525.4,3525.2,2.4562]
[1721522026413,0.59461561,3525.3,3525.2,2.4562]
[1721522026614,0.59461561,3525.4,3525.2,2.4562]
[1721522029755,0.59461561,3525.5,3525.2,2.4562]
[1721522032015,0.59461561,3525.4,3525.2,2.4562]
[1721522033579,0.59461561,3525.4,3524.9,9.7947]
[1721522033872,2.8367,3525.3,3524.9,9.7947]
[1721522036392,0.59461561,3525.4,3524.9,6.01663]
[1721522036591,0.59461561,3525.6,3525.2,2.3447]
[1721522037266,3.43095561,3525.7,3525.2,2.3447]
[1721522041697,0.59461561,3525.7,3525.2,2.3447]
[1721522041886,0.59461561,3525.4,3524.8,2.3447]
[1721522042052,2.83666,3525.3,3524.8,2.3447]
[1721522042257,2.83674,3525.2,3524.8,2.3447]
[1721522042480,3.67166,3525.3,3524.8,2.3447]
[1721522042481,2.8368,3525.1,3524.8,2.3447]
[1721522046375,3.43127561,3525.3,3524.8,2.3447]
[1721522046584,4.02982396,3525.3,3524.8,2.3447]
[1721522046916,2.83685,3525.1,3524.8,2.3447]
[1721522047080,2.83685,3525.1,3524.5,2.2711]
[1721522048607,2.83689,3525.0,3524.5,2.2711]
[1721522051489,2.83697,3524.9,3524.5,2.2711]
[1721522053609,2.8371,3524.8,3524.5,2.2711]
[1721522055525,2.8371,3524.8,3524.1,2.2553]
[1721522055732,2.83712,3524.7,3524.1,5.100865]
[1721522055936,2.83728,3524.5,3524.1,2.2553]
[1721522057295,2.83721,3524.6,3524.1,2.2553]
[1721522057892,2.83743,3524.4,3524.1,2.2553]
[1721522059399,2.83747,3524.3,3524.1,2.2553]
[1721522059606,2.83743,3524.4,3524.1,2.2553]
[1721522065907,2.83744,3524.3,3524.1,2.2553]
[1721522066349,2.83744,3524.3,3523.7,5.15601]
[1721522066541,2.83758,3524.2,3523.7,2.3181]
[1721522066837,2.83762,3524.1,3523.7,2.3181]
[1721522067431,2.83769,3524.0,3523.7,2.3181]
[1721522067805,2.83776,3523.9,3523.7,2.3181]
[1721522071057,1.42961561,3524.2,3523.7,2.3181]
[1721522071263,3.43213561,3524.3,3523.7,2.3181]
[1721522072050,2.83755,3524.2,3523.7,2.3181]
[1721522077531,0.59461561,3524.3,3523.7,2.3181]
[1721522077735,0.59461561,3524.4,3523.9,2.4535]
[1721522083572,0.59461561,3524.3,3523.9,2.4535]
[1721522086157,0.59461561,3524.2,3523.9,2.4535]
[1721522086344,0.59461561,3524.3,3523.9,2.4535]
[1721522087174,0.59461561,3524.2,3523.9,2.4535]
[1721522089735,0.59461561,3524.2,3523.9,5.29124]
[1721522092280,0.8923916,3524.3,3523.9,5.29124]
[1721522092281,0.59461561,3524.1,3523.9,5.29124]
[1721522094040,0.59461561,3524.1,3523.9,2.4535]
[1721522102687,0.835,3524.3,3523.9,2.4535]
[1721522103955,0.89288774,3524.0,3523.9,2.4535]
[1721522112472,1.19051698,3524.1,3523.9,2.4535]
[1721522113269,1.19051698,3524.1,3523.5,2.4543]
[1721522113270,2.02551698,3524.1,3523.5,2.4543]
[1721522113470,0.59525864,3523.6,3523.5,2.4543]
[1721522113885,0.59525421,3523.6,3523.5,5.29237]
[1721522114908,0.89288796,3523.7,3523.5,5.29237]
[1721522115292,1.19051729,3523.9,3523.5,5.29237]
[1721522115293,0.595269,3523.6,3523.5,5.29237]
[1721522116779,0.89288796,3523.6,3523.5,5.29237]
[1721522117190,0.89288796,3523.7,3523.5,5.29237]
[1721522117608,0.89288796,3523.6,3523.2,5.17911]
[1721522117776,0.59516322,3523.3,3523.2,5.17911]
[1721522118392,0.59516322,3523.4,3523.2,5.17911]
[1721522119521,0.59516322,3523.3,3523.2,2.3408]
[1721522120109,0.59516322,3523.4,3523.2,2.3408]
[1721522123107,0.59516322,3523.4,3523.0,5.22686]
[1721522123316,0.59516322,3523.4,3523.0,6.861909]
[1721522124332,0.59516322,3523.5,3523.1,2.8384]
[1721522124910,0.59516322,3523.5,3523.2,5.22672]
[1721522125112,0.59516322,3523.6,3523.3,2.3884]
[1721522129595,0.89274483,3523.7,3523.2,2.83832]
[1721522129596,0.59516322,3523.5,3523.2,2.83832]
[1721522132905,5.80956322,3523.5,3522.9,7.45]
[1721522133111,5.80956322,3523.5,3522.6,2.4942]
[1721522133112,3.43362322,3523.1,3522.6,2.4942]
[1721522133312,0.59516322,3522.9,3522.6,2.4942]
[1721522133510,3.73120483,3523.1,3522.6,2.4942]
[1721522133511,0.59516322,3522.8,3522.6,2.4942]
[1721522134060,0.59516322,3522.7,3522.5,7.45]
[1721522134357,4.86397729,3523.1,3522.4,5.28745]
[1721522134358,0.59516322,3522.8,3522.4,5.28745]
[1721522134755,0.59516322,3522.8,3522.4,2.4485]
[1721522135357,2.83911,3522.3,3522.1,2.4485]
[1721522135560,2.83911,3522.3,3521.9,0.1516477]
[1721522136523,0.59516322,3522.4,3521.9,0.1516477]
[1721522137130,4.26910322,3522.5,3521.9,0.1516477]
[1721522137334,0.59516322,3522.4,3521.9,0.1516477]
[1721522137541,4.26910322,3522.5,3521.9,0.1516477]
[1721522137939,0.59516322,3522.4,3521.9,0.1516477]
[1721522138145,3.67394,3522.5,3521.9,0.1516477]
[1721522139339,3.43397322,3522.6,3521.9,0.1516477]
[1721522139546,0.835,3522.5,3521.9,2.9910177]
[1721522140335,3.6739,3522.5,3521.9,2.9910177]
[1721522141634,2.83929,3522.0,3521.9,0.1516477]
[1721522142156,5.83929,3522.0,3521.9,0.1516477]
[1721522142367,8.67858,3522.0,3521.9,0.1516477]
[1721522143528,5.83929,3522.0,3521.9,0.1516477]
[1721522144916,4.95929,3522.0,3521.9,0.1516477]
[1721522145138,3.83976168,3522.0,3521.9,0.1516477]
[1721522145353,6.67905168,3522.0,3521.9,0.1516477]
[1721522146218,5.83929,3522.0,3521.9,0.1516477]
[1721522146976,8.67858,3522.0,3521.9,0.1516477]
[1721522147472,5.83929,3522.0,3521.9,0.1516477]
[1721522147818,3.0,3522.0,3521.9,0.1516477]
[1721522148562,5.83929,3522.0,3521.9,0.1516477]
[1721522149074,6.790632,3522.0,3521.9,0.1516477]
[1721522150164,9.223932,3522.0,3521.9,0.1516477]
[1721522150941,10.058932,3522.0,3521.9,0.1516477]
[1721522151749,7.625632,3522.0,3521.9,0.1516477]
[1721522154494,6.790632,3522.0,3521.9,0.1516477]
[1721522154783,7.625632,3522.0,3521.9,0.1516477]
[1721522155447,6.790632,3522.0,3521.9,0.1516477]
[1721522155667,7.625632,3522.0,3521.9,0.1516477]
[1721522156458,6.790632,3522.0,3521.9,0.1516477]
[1721522156673,7.625632,3522.0,3521.9,0.1516477]
[1721522157407,6.790632,3522.0,3521.9,0.1516477]
[1721522157704,7.625632,3522.0,3521.9,0.1516477]
[1721522158499,6.790632,3522.0,3521.9,0.1516477]
[1721522161258,14.902512,3522.0,3521.9,0.1516477]
[1721522166231,15.49767522,3522.0,3521.9,0.1516477]
[1721522166389,14.902512,3522.0,3521.9,0.1516477]
[1721522166786,14.902512,3522.0,3521.0,7.45]
[1721522166787,2.84033,3520.8,3520.2,2.3928]
[1721522167044,0.2838,3521.9,3520.2,2.3928]
[1721522167045,2.84018,3520.9,3520.2,2.3928]
[1721522167191,0.835,3520.3,3520.2,2.3928]
[1721522167836,3.6755,3520.5,3520.2,2.3928]
[1721522167988,2.8405,3520.5,3520.2,2.3928]
[1721522168187,3.0,3520.9,3520.2,2.3928]
[1721522168188,2.84034,3520.7,3520.2,2.3928]
[1721522168408,3.584034,3520.6,3520.2,2.3928]
[1721522168607,2.8406,3520.4,3520.2,2.3928]
[1721522168997,3.0,3520.6,3520.2,2.3928]
[1721522169211,3.0,3520.7,3520.2,2.3928]
[1721522169414,2.8402,3520.9,3519.9,2.84098]
[1721522169415,2.84026,3520.8,3520.3,2.4828]
[1721522169629,5.84026,3520.8,3520.3,2.4828]
[1721522170348,3.0,3520.8,3520.3,2.4828]
[1721522170630,2.84003,3521.1,3520.3,2.4828]
[1721522170631,3.0,3521.0,3520.3,2.4828]
[1721522171129,5.84012,3521.0,3520.3,2.84065]
[1721522171334,5.84012,3521.0,3520.5,2.4828]
[1721522171335,3.0,3521.0,3520.5,2.4828]
[1721522171491,3.0,3521.1,3520.5,2.4828]
[1721522171891,0.2838,3521.3,3520.5,2.4828]
[1721522171892,2.84042,3520.6,3520.5,2.4828]
[1721522172218,3.124462,3520.6,3520.5,2.4828]
[1721522172532,3.124462,3520.6,3519.8,2.84099]
[1721522172533,6.124462,3520.6,3519.9,2.4828]
[1721522172695,2.84051,3520.5,3519.9,2.4828]
[1721522173197,2.84056,3520.5,3519.9,2.4828]
[1721522173599,2.84061,3520.4,3519.9,2.4828]
[1721522174028,2.84046,3520.6,3519.9,2.4828]
[1721522174233,2.84046,3520.6,3520.0,2.3642]
[1721522174405,2.84046,3520.6,3520.1,2.3642]
[1721522176821,2.84052,3520.5,3520.1,2.3642]
[1721522177739,5.84035,3520.7,3520.1,2.3642]
[1721522179317,2.84046,3520.6,3520.1,2.3642]
[1721522184860,5.84035,3520.7,3520.1,2.3642]
[1721522185023,3.661825,3520.6,3520.1,2.3642]
[1721522186462,2.84052,3520.5,3520.1,2.3642]
[1721522190129,2.84045,3520.6,3520.1,2.3642]
[1721522193049,2.8405,3520.5,3520.1,2.3642]
[1721522199292,3.43566322,3520.5,3520.1,2.3642]
[1721522199671,2.84059,3520.4,3520.1,2.3642]
[1721522201103,3.43575322,3520.4,3520.1,2.3642]
[1721522202168,0.59516322,3520.4,3520.1,2.3642]
[1721522202377,0.59516322,3520.5,3520.1,2.3642]
[1721522202997,0.59516322,3520.4,3520.1,2.3642]
[1721522204203,0.59516322,3520.3,3520.1,2.3642]
[1721522205196,0.59516322,3520.2,3520.1,2.3642]
[1721522208406,0.89274483,3520.3,3520.1,2.3642]
[1721522209682,0.89274483,3520.2,3520.1,2.3642]
[1721522209882,4.03119729,3520.3,3520.1,2.3642]
[1721522210383,1.19051729,3520.2,3520.1,2.3642]
[1721522210578,2.84074,3520.2,3520.1,2.3642]
[1721522210779,3.61173273,3520.2,3520.1,2.3642]
[1721522211395,2.84082,3520.1,3519.9,2.2524]
[1721522211601,4.02909215,3520.1,3519.9,2.2524]
[1721522212292,1.18827215,3520.0,3519.9,2.2524]
[1721522216594,2.8409,3520.0,3519.9,2.2524]
[1721522216926,2.84106,3519.9,3519.3,2.3521]
[1721522217131,2.84157,3519.2,3519.0,2.3521]
[1721522217287,0.89128846,3519.1,3519.0,2.3521]
[1721522218590,3.73285846,3519.2,3519.0,2.3521]
[1721522219206,0.89128846,3519.2,3519.0,2.3521]
[1721522219727,0.59330064,3519.1,3519.0,2.3521]
[1721522220290,0.89128846,3519.2,3519.0,2.3521]
[1721522220516,4.02986461,3519.3,3519.0,5.42895]
[1721522220517,0.59331518,3519.1,3519.0,5.42895]
[1721522220714,0.59331518,3519.3,3519.1,2.3521]
[1721522222445,0.59331518,3519.4,3519.1,2.3521]
[1721522223460,0.59331518,3519.3,3519.1,2.3521]
[1721522223669,0.59331518,3519.2,3519.1,2.3521]
[1721522223953,0.59331518,3519.3,3519.1,2.3521]
[1721522225451,2.84172,3519.0,3518.4,0.1516477]
[1721522225622,0.59278274,3518.8,3518.4,0.1516477]
[1721522226316,0.59278274,3518.9,3518.4,0.1516477]
[1721522226838,0.59278274,3518.6,3518.4,0.1516477]
[1721522227856,0.59278274,3518.7,3518.4,0.1516477]
[1721522228222,2.84204,3518.6,3518.4,0.1516477]
[1721522232256,6.43458274,3518.9,3518.4,0.1516477]
[1721522232562,2.84189,3518.8,3518.4,0.1516477]
[1721522232860,3.0,3518.7,3518.4,0.1516477]
[1721522234256,6.76963827,3518.7,3518.4,0.1516477]
[1721522234458,2.84204,3518.6,3518.4,0.1516477]
[1721522235967,2.84212,3518.5,3518.4,0.1516477]
[1721522237661,5.68424,3518.5,3518.4,0.1516477]
[1721522239335,8.68424,3518.5,3518.4,0.1516477]
[1721522239537,9.4822344,3518.5,3518.4,0.1516477]
[1721522241878,6.6401144,3518.5,3518.4,0.1516477]
[1721522246161,7.4791144,3518.5,3518.4,0.1516477]
[1721522250088,3.0,3518.5,3518.4,2.5166477]
[1721522250393,0.88917411,3519.1,3518.4,2.5166477]
[1721522250394,0.839,3518.9,3518.4,2.5166477]
[1721522250687,3.0,3518.5,3518.4,2.5166477]
[1721522251101,0.839,3518.9,3518.4,2.5166477]
[1721522251250,3.43435274,3519.2,3518.4,5.3588377]
[1721522251450,0.59278274,3519.3,3518.5,5.20711]
[1721522251649,3.68049,3519.3,3518.5,5.20711]
[1721522251907,0.59278274,3519.6,3519.0,2.84169]
[1721522252061,2.84115,3519.7,3519.0,2.84169]
[1721522252264,0.839,3519.8,3518.8,5.20686]
[1721522252486,3.43377274,3519.9,3519.2,2.84155]
[1721522252487,4.27277274,3519.9,3519.2,2.84155]
[1721522253281,3.67999,3519.9,3519.2,2.84155]
[1721522253461,4.27277274,3519.9,3519.2,2.84155]
[1721522254003,3.0,3519.8,3519.2,2.84155]
[1721522255053,3.43377274,3519.9,3519.1,2.84161]
[1721522255054,0.59278274,3519.9,3519.1,2.84161]
[1721522255290,0.59278274,3519.9,3518.9,0.604586]
[1721522255291,0.59278274,3520.1,3519.4,2.84133]
[1721522255491,0.59278274,3520.0,3519.4,2.84133]
[1721522256095,0.59278274,3520.0,3519.5,2.84129]
[1721522256301,0.59278274,3520.1,3519.9,2.84098]
[1721522256458,0.59278274,3520.4,3520.0,2.365]
[1721522256657,0.88917411,3520.6,3520.1,2.84082]
[1721522256658,0.59278274,3520.6,3520.1,2.84082]
[1721522256863,0.59278274,3520.7,3520.1,2.84082]
[1721522257062,0.59278274,3520.8,3520.1,2.84082]
[1721522257276,0.59278274,3520.9,3520.2,2.84071]
[1721522257573,4.29643289,3520.9,3520.0,5.2059]
[1721522257894,0.59278274,3520.8,3520.0,5.2059]
[1721522258140,0.59278274,3520.8,3520.1,2.8408]
[1721522258444,3.59278274,3520.8,3520.1,2.8408]
[1721522258592,3.0,3520.7,3520.1,2.8408]
[1721522258928,3.0,3520.7,3520.1,3.645486]
[1721522259144,3.0,3520.8,3520.4,2.84056]
[1721522259432,0.59278274,3521.1,3520.4,2.84056]
[1721522259729,0.59278274,3521.1,3520.4,2.84052]
[1721522260033,0.59278274,3521.1,3520.0,2.365]
[1721522260034,0.59278274,3521.0,3520.0,2.365]
[1721522260241,0.59278274,3520.9,3520.0,2.365]
[1721522260402,2.84032,3520.8,3520.0,2.365]
[1721522260604,3.9132621,3520.8,3520.0,2.365]
[1721522260820,3.0,3520.7,3520.0,2.365]
[1721522261894,5.84036,3520.7,3520.0,2.365]
[1721522262495,2.84044,3520.6,3520.0,2.365]
[1721522263124,5.84052,3520.5,3520.0,2.365]
[1721522263337,6.59858044,3520.5,3520.0,2.365]
[1721522263842,3.75806044,3520.5,3519.6,5.16627]
[1721522264060,2.84065,3520.4,3519.6,5.16627]
[1721522264891,0.75806044,3520.5,3519.6,2.3251]
[1721522265348,0.37580604,3520.4,3519.6,2.3251]
[1721522265493,0.59278274,3520.6,3519.6,2.3251]
[1721522265494,2.84104,3519.9,3519.6,2.3251]
[1721522265712,3.72963411,3520.6,3519.0,2.84167]
[1721522265713,2.60478274,3520.4,3519.0,2.84167]
[1721522265936,2.60478274,3520.4,3519.1,2.3251]
[1721522265937,2.84112,3519.8,3519.1,2.3251]
[1721522266150,2.84132,3519.5,3519.1,2.3251]
[1721522266454,3.0,3519.4,3519.1,2.3251]
[1721522267826,5.8414,3519.4,3519.1,2.3251]
[1721522268450,3.0,3519.4,3519.1,2.3251]
[1721522268753,3.0,3519.5,3519.1,2.3251]
[1721522270047,3.0,3519.6,3519.1,2.3251]
[1721522270418,3.0,3519.6,3519.2,2.84154]
[1721522270621,2.84092,3520.0,3519.2,2.84154]
[1721522271040,3.0,3519.9,3519.2,2.84154]
[1721522271356,3.0,3519.9,3519.1,2.3251]
[1721522271515,3.0,3520.0,3519.1,2.3251]
[1721522271721,2.84125,3519.6,3519.1,2.3251]
[1721522271917,3.0,3519.5,3519.1,2.3251]
[1721522272123,5.84132,3519.5,3519.1,2.3251]
[1721522273150,5.84132,3519.5,3518.9,7.45]
[1721522273317,6.76884527,3519.5,3518.9,7.45]
[1721522274957,3.92752527,3519.5,3518.9,7.45]
[1721522275264,3.0,3519.6,3519.1,2.84162]
[1721522275433,3.0,3519.8,3519.1,2.84162]
[1721522276458,5.84109,3519.8,3519.1,2.84162]
[1721522277347,6.43387274,3519.8,3519.1,2.84162]
[1721522277560,3.0,3519.8,3519.2,2.84155]
[1721522277728,6.43372274,3520.0,3519.3,2.4129]
[1721522277933,2.84101,3519.9,3519.3,2.4129]
[1721522278133,3.0,3519.8,3519.3,2.4129]
[1721522278651,3.0,3519.8,3519.3,3.222516]
[1721522278823,0.88917411,3520.2,3519.5,2.84125]
[1721522278824,3.0,3520.2,3519.5,2.84125]
[1721522279029,5.84077,3520.2,3519.5,2.84125]
[1721522280161,3.0,3520.2,3519.6,2.84121]
[1721522280469,3.0,3520.3,3519.7,2.4129]
[1721522280971,5.84068,3520.3,3519.7,2.4129]
[1721522282053,2.84076,3520.2,3519.7,2.4129]
[1721522282268,3.0,3520.1,3519.7,2.4129]
[1721522284362,2.84085,3520.1,3519.7,2.4129]
[1721522284685,3.0,3520.0,3519.7,2.4129]
[1721522284997,5.84067,3520.3,3519.7,2.4129]
[1721522285204,6.85698369,3520.3,3519.7,2.4129]
[1721522285354,7.44976643,3520.3,3519.7,2.4129]
[1721522285557,4.60909643,3520.3,3519.7,2.4129]
[1721522285850,0.59278274,3520.3,3519.7,2.4129]
[1721522286883,3.43347274,3520.3,3519.7,2.4129]
[1721522287079,3.0,3520.2,3519.7,2.4129]
[1721522287275,5.84077,3520.2,3519.7,2.4129]
[1721522289205,3.0,3520.2,3519.7,2.4129]
[1721522290496,3.59278274,3520.2,3519.7,2.4129]
[1721522291600,6.43353274,3520.2,3519.7,2.4129]
[1721522291891,0.59278274,3520.1,3519.7,2.4129]
[1721522292665,3.43362274,3520.1,3519.7,2.4129]
[1721522292981,3.0,3520.0,3519.7,2.4129]
[1721522293180,3.59278274,3520.0,3519.7,2.4129]
[1721522293563,2.84099,3519.9,3519.7,2.4129]
[1721522293895,0.59278274,3519.9,3519.7,2.4129]
[1721522294308,0.59278274,3519.8,3519.7,2.4129]
[1721522295378,0.88917411,3519.9,3519.7,2.4129]
[1721522295575,0.59256919,3519.9,3519.7,2.4129]
[1721522296216,0.59256919,3519.8,3519.7,2.4129]
[1721522297596,0.88917411,3519.8,3519.7,2.4129]
[1721522297770,0.88917411,3519.8,3519.3,9.787]
[1721522297771,1.98102098,3519.8,3519.3,9.787]
[1721522297976,0.59298339,3519.5,3519.3,9.787]
[1721522301077,0.59298339,3519.5,3519.3,2.337]
[1721522302501,0.59298339,3519.4,3519.3,2.337]
[1721522302719,0.59298339,3519.4,3519.0,2.337]
[1721522303405,0.59298339,3519.3,3519.0,2.337]
[1721522303619,0.59298339,3519.2,3519.0,2.337]
[1721522305077,0.59298339,3519.3,3519.0,2.337]
[1721522305391,0.59298339,3519.4,3519.1,2.84162]
[1721522305772,0.59298339,3519.2,3519.0,2.337]
[1721522306016,0.59298339,3519.2,3519.0,5.17868]
[1721522306190,0.88917411,3519.4,3519.0,5.17868]
[1721522306191,0.59298339,3519.3,3519.0,5.17868]
[1721522307031,0.59298339,3519.3,3519.1,2.84162]
[1721522307398,0.59298339,3519.4,3519.2,2.837862]
[1721522308329,0.59298339,3519.3,3519.2,2.837862]
[1721522308502,0.59298339,3519.4,3519.2,2.837862]
[1721522308842,0.59298339,3519.3,3519.2,2.837862]
[1721522314431,0.59298339,3519.3,3519.2,2.32]
[1721522317264,0.88917411,3519.4,3519.2,2.32]
[1721522317434,0.59384201,3519.3,3519.2,2.32]
[1721522318056,0.59383984,3519.3,3519.2,2.32]
[1721522318237,0.88917411,3519.4,3519.2,2.32]
[1721522318441,0.88917411,3519.3,3519.2,2.32]
[1721522320361,1.18838461,3519.4,3519.2,2.32]
[1721522321226,0.89091831,3519.3,3519.2,2.32]
[1721522321766,1.18838461,3519.4,3519.2,2.32]
[1721522322071,0.89094792,3519.3,3519.2,2.32]
[1721522322442,1.18838461,3519.4,3519.2,2.32]
[1721522322951,0.89100505,3519.3,3519.2,2.32]
[1721522324963,1.18838461,3519.4,3519.2,2.32]
[1721522325452,0.89102824,3519.3,3519.2,2.32]
[1721522334024,0.84102824,3519.3,3519.2,2.32]
[1721522337690,1.18838461,3519.4,3519.2,2.32]
[1721522339626,1.18838461,3519.3,3519.2,2.32]
[1721522339928,1.18838461,3519.4,3519.2,2.32]
[1721522345445,0.8919371,3519.3,3519.2,2.32]
[1721522345644,0.8919371,3519.3,3519.2,5.47734]
[1721522345805,0.8919371,3519.4,3519.3,2.84147]
[1721522346001,0.8919371,3519.4,3519.3,5.20187]
[1721522346406,0.8919371,3519.4,3519.3,6.03987]
[1721522346640,0.59461433,3519.4,3519.3,6.121591]
[1721522347139,0.8919371,3519.5,3519.4,2.84139]
[1721522349441,0.8919371,3519.6,3519.4,2.84139]
[1721522349641,0.8919371,3519.5,3519.4,2.84139]
[1721522350205,0.8919371,3519.6,3519.5,2.84131]
[1721522350449,1.18838461,3519.7,3519.5,2.84131]
[1721522350611,1.18838461,3519.7,3519.3,6.121581]
[1721522350612,0.8916669,3519.6,3519.3,6.121581]
[1721522350808,0.8916669,3519.5,3519.3,6.121581]
[1721522351034,0.8916669,3519.4,3519.3,5.20186]
[1721522353638,0.8916669,3519.4,3519.3,2.84146]
[1721522355325,0.8916669,3519.4,3519.3,5.28266]
[1721522355528,0.8916669,3519.5,3519.4,2.84139]
[1721522360155,0.8916669,3519.5,3519.3,2.4412]
[1721522360342,0.8916669,3519.4,3519.3,2.4412]
[1721522361142,0.8916669,3519.4,3519.1,2.8416]
[1721522361340,0.59438147,3519.2,3519.1,2.8416]
[1721522361781,0.59438147,3519.3,3519.2,2.84155]
[1721522363188,0.8916669,3519.5,3519.0,5.2829]
[1721522363189,0.8916669,3519.4,3519.0,2.4412]
[1721522363344,0.59437854,3519.2,3519.0,2.4412]
[1721522363546,0.59437854,3519.2,3519.0,5.2829]
[1721522364192,0.59437854,3519.3,3519.0,5.2829]
[1721522364497,0.59437854,3519.2,3519.0,6.924175]
[1721522367288,0.59437854,3519.3,3519.1,2.84163]
[1721522368497,0.59437854,3519.3,3519.2,2.84155]
[1721522369958,0.8916669,3519.4,3519.2,2.84155]
[1721522370155,0.59441033,3519.3,3519.2,2.84155]
[1721522370356,0.8916669,3519.4,3519.2,2.84155]
[1721522371171,0.59441663,3519.3,3519.2,2.84155]
[1721522371367,0.8916669,3519.4,3519.2,2.84155]
[1721522372666,0.59444771,3519.3,3519.2,2.84155]
[1721522373617,0.8916669,3519.3,3519.2,2.84155]
[1721522374410,0.8916669,3519.3,3519.0,6.924145]
[1721522374570,0.59445902,3519.1,3519.0,6.924145]
[1721522376510,0.59445902,3519.1,3519.0,5.28287]
[1721522379078,0.59445902,3519.1,3518.8,2.84183]
[1721522379322,0.59445902,3519.0,3518.7,2.4616]
[1721522379614,0.8916669,3518.8,3518.4,7.6016477]
[1721522379812,0.59432973,3518.6,3518.4,7.6016477]
[1721522379998,0.8916669,3518.7,3518.4,7.6016477]
[1721522379999,0.59432973,3518.5,3518.4,7.6016477]
[1721522380490,1.18838461,3518.9,3518.4,7.6016477]
[1721522380491,0.59432973,3518.6,3518.4,7.6016477]
[1721522381574,0.59432973,3518.7,3518.4,7.6016477]
[1721522382012,0.59432973,3518.6,3518.4,7.6016477]
[1721522382519,0.59432973,3518.7,3518.4,7.6016477]
[1721522382993,0.59432973,3518.6,3518.4,7.6016477]
[1721522383307,0.59432973,3518.5,3518.4,0.1516477]
[1721522383817,0.59362053,3518.5,3518.4,0.1516477]
[1721522384688,1.98317773,3518.5,3518.4,0.1516477]
[1721522385019,5.42006181,3518.5,3518.4,0.1516477]
[1721522385190,4.2316772,3518.5,3518.4,0.1516477]
[1721522385511,8.4178824,3518.5,3518.4,0.1516477]
[1721522386210,12.5077972,3518.5,3518.4,0.1516477]
[1721522387282,13.98939443,3518.5,3518.4,0.1516477]
[1721522387589,12.5077972,3518.5,3518.4,0.1516477]
[1721522387823,13.69256158,3518.5,3518.4,0.1516477]
[1721522388117,8.12028845,3518.5,3518.4,0.1516477]
[1721522388299,7.56873125,3518.5,3518.4,0.1516477]
[1721522388890,10.41085125,3518.5,3518.4,0.1516477]
[1721522389095,9.52224,3518.5,3518.4,0.1516477]
[1721522389315,6.68012,3518.5,3518.4,0.1516477]
[1721522389521,8.78703137,3518.5,3518.4,0.1516477]
[1721522389759,11.62915137,3518.5,3518.4,0.1516477]
[1721522389905,14.05615137,3518.5,3518.4,0.1516477]
[1721522390408,13.16809316,3518.5,3518.4,0.1516477]
[1721522390596,14.05589008,3518.5,3518.4,0.1516477]
[1721522392425,13.16809316,3518.5,3518.4,0.1516477]
[1721522393537,13.75959294,3518.5,3518.4,0.1516477]
[1721522393880,13.16809316,3518.5,3518.4,0.1516477]
[1721522394087,13.75958716,3518.5,3518.4,0.1516477]
[1721522394280,13.16809316,3518.5,3518.4,0.1516477]
[1721522394587,13.75950382,3518.5,3518.4,0.1516477]
[1721522398107,13.16809316,3518.5,3518.4,0.1516477]
[1721522398538,13.75950382,3518.5,3518.4,0.1516477]
[1721522398842,13.16809316,3518.5,3518.4,0.1516477]
[1721522402119,9.90309316,3518.5,3518.4,0.1516477]
[1721522402345,10.74109316,3518.5,3518.4,0.1516477]
[1721522402874,7.89897316,3518.5,3518.4,0.1516477]
[1721522403179,0.88779692,3518.9,3518.4,0.1516477]
[1721522403180,0.59141066,3519.1,3518.4,2.5403477]
[1721522403469,3.0,3519.1,3518.4,5.3825277]
[1721522403677,1.42941066,3519.2,3518.4,5.3825277]
[1721522403678,3.67956,3519.2,3518.4,5.3825277]
[1721522403863,3.0,3519.1,3518.5,0.90628777]